bitfinex/quotes_BTCUSD_20251001
["timestamp","ask_amount","ask_price","bid_price","bid_amount"]
[1759337663483,0.35023561,117810.0,117800.0,0.2610307]
[1759337663903,0.65837953,117810.0,117800.0,0.2610307]
[1759337664713,0.99837953,117810.0,117800.0,0.2610307]
[1759337665711,0.91005953,117810.0,117800.0,0.2610307]
[1759337665940,0.99837953,117810.0,117800.0,0.2610307]
[1759337666811,0.66477953,117810.0,117800.0,0.2610307]
[1759337667018,0.99837953,117810.0,117800.0,0.2610307]
[1759337667237,1.00035953,117810.0,117800.0,0.2610307]
[1759337667439,0.99837953,117810.0,117800.0,0.2610307]
[1759337667850,1.00035953,117810.0,117800.0,0.2580707]
[1759337668057,0.66675953,117810.0,117800.0,0.2580707]
[1759337668279,1.00035953,117810.0,117800.0,0.2580707]
[1759337668500,1.00035953,117810.0,117800.0,0.2610307]
[1759337669352,1.01855827,117810.0,117800.0,0.2580707]
[1759337669604,0.68297827,117810.0,117800.0,0.2580707]
[1759337669819,0.9982854,117810.0,117800.0,0.43080998]
[1759337671286,0.93858492,117810.0,117800.0,0.43080998]
[1759337671545,0.93858122,117810.0,117800.0,0.43080998]
[1759337672199,0.42881635,117810.0,117800.0,0.43080998]
[1759337672594,0.41299925,117810.0,117800.0,0.43080998]
[1759337672798,0.58276412,117810.0,117800.0,0.43080998]
[1759337672942,0.58276412,117810.0,117800.0,0.2610307]
[1759337673143,0.58276412,117810.0,117800.0,0.37529017]
[1759337673368,0.60097724,117810.0,117800.0,0.37529017]
[1759337673566,0.60097724,117810.0,117800.0,0.20551089]
[1759337674335,0.60296414,117810.0,117800.0,0.20255089]
[1759337674719,0.60296414,117810.0,117800.0,0.37233017]
[1759337675626,0.60098414,117810.0,117800.0,0.37529017]
[1759337676035,0.60098749,117810.0,117800.0,0.37529017]
[1759337676241,0.57553141,117810.0,117800.0,0.37529017]
[1759337676444,0.48721141,117810.0,117800.0,0.37529017]
[1759337676647,0.57553141,117810.0,117800.0,0.37529017]
[1759337677340,0.24197141,117810.0,117800.0,0.37529017]
[1759337677650,0.55731829,117810.0,117800.0,0.20551089]
[1759337677842,0.57553141,117810.0,117800.0,0.20551089]
[1759337678214,0.5842951,117810.0,117800.0,0.20551089]
[1759337678624,0.6743751,117810.0,117800.0,0.20039089]
[1759337679028,0.6713851,117810.0,117800.0,0.20039089]
[1759337679714,0.6713851,117810.0,117800.0,0.20255089]
[1759337680293,0.6713451,117810.0,117800.0,0.36701026]
[1759337680507,0.6693651,117810.0,117800.0,0.19723098]
[1759337680741,0.6713551,117810.0,117800.0,0.19211098]
[1759337682124,0.6713551,117810.0,117800.0,0.21757787]
[1759337683334,0.6713551,117810.0,117800.0,0.20653798]
[1759337683531,0.6743351,117810.0,117800.0,0.20653798]
[1759337684380,0.6713551,117810.0,117800.0,0.21165798]
[1759337684557,0.3358451,117810.0,117800.0,0.21165798]
[1759337684771,0.65118296,117810.0,117800.0,0.21165798]
[1759337684973,0.67139608,117810.0,117800.0,0.21165798]
[1759337685373,0.67139608,117810.0,117800.0,0.2275531]
[1759337685814,0.67135608,117810.0,117800.0,0.2275531]
[1759337685988,0.67135608,117810.0,117800.0,0.2245931]
[1759337686566,0.6713096,117810.0,117800.0,0.2245931]
[1759337686776,0.5829896,117810.0,117800.0,0.2245931]
[1759337686989,0.6713096,117810.0,117800.0,0.2245931]
[1759337688239,0.6713096,117810.0,117800.0,0.21907316]
[1759337689682,0.6713096,117810.0,117800.0,0.21691316]
[1759337689893,0.6713096,117810.0,117800.0,0.21907316]
[1759337690493,0.6713096,117810.0,117800.0,0.21691316]
[1759337690673,0.6713096,117810.0,117800.0,0.20309804]
[1759337690869,0.6713096,117810.0,117800.0,0.20101804]
[1759337691072,1.0600072,117810.0,117800.0,0.19273808]
[1759337691344,1.0142796,117810.0,117800.0,0.19273808]
[1759337691710,1.0444315,117810.0,117800.0,0.19273808]
[1759337691911,1.0901591,117810.0,117800.0,0.19273808]
[1759337693293,1.0901591,117810.0,117800.0,0.18169674]
[1759337693953,0.2964472,117810.0,117800.0,0.21185626]
[1759337694169,0.06274161,117810.0,117800.0,0.38163554]
[1759337694374,0.39618161,117810.0,117800.0,0.38163554]
[1759337694574,0.5841596,117810.0,117800.0,0.38163554]
[1759337694782,0.5841596,117810.0,117800.0,0.35653495]
[1759337694959,0.5841596,117810.0,117800.0,0.18653967]
[1759337695156,0.5841596,117810.0,117800.0,0.35631895]
[1759337696362,0.32607473,117810.0,117800.0,0.35631895]
[1759337696728,0.56594648,117810.0,117800.0,0.35631895]
[1759337696864,0.5841596,117810.0,117800.0,0.35631895]
[1759337697688,0.5841596,117810.0,117800.0,0.18653967]
[1759337698299,0.5861396,117810.0,117800.0,0.18653967]
[1759337698503,0.5861396,117810.0,117800.0,0.18360967]
[1759337699727,0.5841596,117810.0,117800.0,0.35631895]
[1759337700148,0.5841596,117810.0,117800.0,0.18653967]
[1759337700928,0.6712496,117810.0,117800.0,0.18152967]
[1759337701130,1.0443915,117810.0,117800.0,0.18152967]
[1759337701355,1.3094315,117810.0,117800.0,0.18152967]
[1759337701510,1.3977515,117810.0,117800.0,0.18152967]
[1759337701933,1.3093915,117810.0,117800.0,0.18152967]
[1759337702132,0.7109515,117810.0,117800.0,0.18152967]
[1759337702367,1.3977115,117810.0,117800.0,0.18152967]
[1759337703806,0.7109515,117810.0,117800.0,0.18152967]
[1759337704136,1.3977115,117810.0,117800.0,0.18152967]
[1759337706207,0.7079615,117810.0,117800.0,0.18152967]
[1759337706417,1.3947215,117810.0,117800.0,0.18360967]
[1759337706618,1.3947215,117810.0,117800.0,0.18152967]
[1759337706828,0.9530415,117810.0,117800.0,0.18152967]
[1759337707031,1.3977115,117810.0,117800.0,0.18152967]
[1759337708481,0.7079615,117810.0,117800.0,0.18360967]
[1759337708733,0.99101648,117810.0,117800.0,0.18653967]
[1759337709563,0.65761648,117810.0,117800.0,0.18653967]
[1759337709714,0.99101648,117810.0,117800.0,0.18653967]
[1759337710740,0.65761648,117810.0,117800.0,0.35631895]
[1759337710928,0.65101648,117810.0,117800.0,0.18653967]
[1759337711946,0.65101648,117810.0,117800.0,0.35631895]
[1759337712196,0.39614161,117810.0,117800.0,0.35631895]
[1759337712634,0.05397792,117810.0,117800.0,0.35631895]
[1759337712843,0.29933792,117810.0,117800.0,0.35631895]
[1759337713577,0.29139583,117810.0,117800.0,0.35631895]
[1759337716616,0.29171583,117810.0,117800.0,0.35631895]
[1759337717195,0.4614807,117810.0,117800.0,0.35631895]
[1759337720099,0.29171583,117810.0,117800.0,0.41591001]
[1759337720267,0.29171583,117810.0,117800.0,0.35631895]
[1759337720788,0.37995583,117810.0,117800.0,0.35631895]
[1759337722601,0.5517607,117810.0,117800.0,0.18360967]
[1759337722801,0.5517607,117810.0,117800.0,0.35338895]
[1759337723136,0.5517607,117810.0,117800.0,0.35643895]
[1759337723137,0.5497207,117810.0,117800.0,0.35643895]
[1759337723570,0.70634832,117810.0,117790.0,0.06979849]
[1759337723770,0.95113928,117800.0,117790.0,0.06979849]
[1759337723978,1.00967714,117800.0,117790.0,0.06979849]
[1759337724337,0.65839714,117800.0,117790.0,0.06979849]
[1759337724553,1.32029025,117800.0,117790.0,0.06979849]
[1759337724750,1.29519528,117800.0,117790.0,0.06979849]
[1759337725157,0.6078354,117800.0,117790.0,0.06979849]
[1759337725387,1.2951154,117800.0,117790.0,0.06979849]
[1759337725595,1.18128478,117800.0,117790.0,0.06979849]
[1759337725801,1.28547917,117800.0,117790.0,0.06979849]
[1759337727738,1.31098938,117800.0,117790.0,0.06979849]
[1759337729687,1.31098938,117800.0,117790.0,0.07001403]
[1759337730513,1.28552249,117800.0,117790.0,0.07001403]
[1759337731110,0.59531249,117800.0,117790.0,0.07001403]
[1759337731277,1.28239249,117800.0,117790.0,0.07001403]
[1759337731643,1.28532249,117800.0,117790.0,0.07001403]
[1759337731854,0.59824249,117800.0,117790.0,0.07001403]
[1759337732061,0.22776228,117800.0,117790.0,0.07522403]
[1759337732268,0.45728789,117800.0,117790.0,0.07522403]
[1759337732481,0.7893555,117800.0,117790.0,0.07522403]
[1759337732717,0.45728603,117800.0,117790.0,0.07522403]
[1759337732904,0.7893555,117800.0,117790.0,0.07522403]
[1759337733565,0.79728551,117800.0,117790.0,0.07522403]
[1759337736112,0.79926551,117800.0,117790.0,0.07217403]
[1759337736323,0.79926551,117800.0,117790.0,0.07522403]
[1759337736324,0.79728551,117800.0,117790.0,0.07522403]
[1759337736661,0.77181862,117800.0,117790.0,0.07522403]
[1759337739161,0.78768937,117800.0,117790.0,0.07522403]
[1759337739743,0.20228937,117800.0,117790.0,0.24501773]
[1759337739958,0.53584937,117800.0,117790.0,0.07522403]
[1759337740162,0.52710004,117800.0,117790.0,0.2619971]
[1759337740372,0.52710004,117800.0,117790.0,0.24501773]
[1759337742057,0.5097937,117790.0,117780.0,0.26159146]
[1759337742253,0.67208839,117790.0,117780.0,0.26159146]
[1759337742611,1.35944839,117790.0,117780.0,0.26159146]
[1759337742727,1.66433226,117790.0,117780.0,0.26159146]
[1759337742928,1.68984681,117790.0,117780.0,0.26159146]
[1759337744158,0.16983695,117760.0,117750.0,0.01023416]
[1759337744365,0.58934695,117760.0,117750.0,0.01023416]
[1759337744566,0.62150885,117760.0,117750.0,0.01023416]
[1759337745171,0.62446885,117760.0,117750.0,0.01023416]
[1759337745399,0.62446885,117760.0,117750.0,0.01028072]
[1759337745571,0.62150885,117760.0,117750.0,0.01028072]
[1759337745773,0.62446885,117760.0,117750.0,0.01028072]
[1759337745979,0.68743794,117760.0,117750.0,0.01028072]
[1759337746600,1.35814224,117760.0,117750.0,0.01028072]
[1759337746799,1.38191993,117760.0,117750.0,0.01028072]
[1759337747218,1.38991993,117760.0,117750.0,0.01028072]
[1759337747418,1.05551993,117760.0,117750.0,0.01028072]
[1759337747617,0.5400177,117740.0,117730.0,0.0002]
[1759337747822,0.87206767,117740.0,117730.0,0.0002]
[1759337748050,0.87408767,117740.0,117730.0,0.0002]
[1759337748695,0.84861862,117740.0,117730.0,0.0002]
[1759337749479,0.60181862,117740.0,117730.0,0.0002]
[1759337750099,0.84849862,117740.0,117730.0,0.00236]
[1759337750304,0.93685862,117740.0,117730.0,0.00236]
[1759337750509,0.57166672,117740.0,117730.0,0.00236]
[1759337750710,0.90468672,117740.0,117730.0,0.00533]
[1759337750913,0.92276572,117740.0,117730.0,0.00236]
[1759337751121,0.92276572,117740.0,117730.0,0.0002]
[1759337751321,0.92576572,117740.0,117730.0,0.0002]
[1759337754023,0.58576572,117740.0,117730.0,0.0002]
[1759337754170,0.92576572,117740.0,117730.0,0.0002]
[1759337754374,0.92576572,117740.0,117730.0,0.00149395]
[1759337754840,0.90029667,117740.0,117730.0,0.00149395]
[1759337755913,0.56525667,117740.0,117730.0,0.00149395]
[1759337756111,0.90017667,117740.0,117730.0,0.00149395]
[1759337757315,0.56525667,117740.0,117730.0,0.00149395]
[1759337757524,0.89705667,117740.0,117730.0,0.00149395]
[1759337758361,0.56225667,117740.0,117730.0,0.00149395]
[1759337758565,0.89705667,117740.0,117730.0,0.00149395]
[1759337758909,0.56029667,117740.0,117730.0,0.00653395]
[1759337759108,0.56029667,117740.0,117730.0,0.17641418]
[1759337759351,0.56029667,117740.0,117730.0,0.00653395]
[1759337759544,0.89501667,117740.0,117730.0,0.17641418]
[1759337759741,0.80665667,117740.0,117730.0,0.17641418]
[1759337759971,0.56029667,117740.0,117730.0,0.17641418]
[1759337760134,0.80986667,117740.0,117730.0,0.17641418]
[1759337760340,0.47518667,117740.0,117730.0,0.17641418]
[1759337760855,0.78435762,117740.0,117730.0,0.23851962]
[1759337761265,0.78435762,117740.0,117730.0,0.17641418]
[1759337762107,0.86068477,117740.0,117730.0,0.17641418]
[1759337762285,0.86068477,117740.0,117730.0,0.1934022]
[1759337762707,0.69081897,117740.0,117730.0,0.1934022]
[1759337762908,0.26245897,117740.0,117730.0,0.17641418]
[1759337763065,0.35081897,117740.0,117730.0,0.17641418]
[1759337763479,0.35081897,117740.0,117730.0,0.23851962]
[1759337763892,0.35081897,117740.0,117730.0,0.17641418]
[1759337765103,0.01625897,117740.0,117730.0,0.17641418]
[1759337765360,0.35073897,117740.0,117730.0,0.17641418]
[1759337766177,0.52060522,117740.0,117720.0,0.35287444]
[1759337766390,0.01625897,117740.0,117730.0,0.17195023]
[1759337766600,0.35073897,117740.0,117730.0,0.18893825]
[1759337766806,0.32526992,117740.0,117730.0,0.18893825]
[1759337767421,0.34156574,117740.0,117730.0,0.18893825]
[1759337767638,0.01629582,117740.0,117730.0,0.18893825]
[1759337767844,0.61445978,117760.0,117750.0,0.16985138]
[1759337767845,0.57280761,117760.0,117750.0,0.16985138]
[1759337768052,1.00236112,117760.0,117750.0,0.17192138]
[1759337768263,1.01823212,117760.0,117750.0,0.00207]
[1759337768479,0.16985138,117750.0,117740.0,0.1728358]
[1759337768676,0.16985138,117750.0,117740.0,0.1749058]
[1759337768677,0.17777489,117750.0,117740.0,0.1749058]
[1759337769084,0.17973489,117750.0,117740.0,0.00207]
[1759337769508,0.17973489,117750.0,117740.0,0.1719358]
[1759337769874,0.17973489,117750.0,117740.0,0.00207]
[1759337770074,0.1956313,117750.0,117740.0,0.1719358]
[1759337770866,0.1698658,117740.0,117730.0,0.22937185]
[1759337771205,0.25408351,117740.0,117730.0,0.23144185]
[1759337771361,0.25408351,117740.0,117730.0,0.23441185]
[1759337772897,0.22861446,117740.0,117730.0,0.23441185]
[1759337774411,0.40345026,117740.0,117720.0,0.3615849]
[1759337774594,0.40345026,117740.0,117720.0,0.36205146]
[1759337774759,0.40345026,117740.0,117730.0,0.16988023]
[1759337775157,0.41935553,117740.0,117720.0,0.36502146]
[1759337775357,0.41935553,117740.0,117730.0,0.00207]
[1759337775788,0.41634553,117740.0,117730.0,0.00207]
[1759337776218,0.16988023,117730.0,117720.0,0.35355745]
[1759337776473,0.2761055,117730.0,117720.0,0.35562745]
[1759337776674,0.2791155,117730.0,117720.0,0.35355745]
[1759337776869,0.2791155,117730.0,117720.0,0.35355799]
[1759337778051,0.34245742,117730.0,117720.0,0.35355799]
[1759337779128,0.31697539,117730.0,117720.0,0.35355799]
[1759337779333,0.31697539,117730.0,117720.0,0.18366333]
[1759337779732,0.74208539,117730.0,117720.0,0.18366333]
[1759337780138,0.76036352,117730.0,117720.0,0.18366333]
[1759337780767,0.74208539,117730.0,117720.0,0.18366333]
[1759337781112,0.76036347,117730.0,117720.0,0.18366333]
[1759337781271,0.74208539,117730.0,117720.0,0.18366333]
[1759337782240,1.01456426,117730.0,117720.0,0.18366333]
[1759337782446,1.38990579,117730.0,117720.0,0.18366333]
[1759337783162,0.68387729,117730.0,117720.0,0.18366333]
[1759337783406,1.01799729,117730.0,117720.0,0.18366333]
[1759337783612,0.68387729,117730.0,117720.0,0.18366333]
[1759337783843,1.37955729,117730.0,117720.0,0.18366333]
[1759337784068,0.69187729,117730.0,117720.0,0.18366333]
[1759337784260,1.37955729,117730.0,117720.0,0.18366333]
[1759337784470,0.7101382,117730.0,117720.0,0.18366333]
[1759337784772,1.387443,117730.0,117720.0,0.18366333]
[1759337784967,1.36196097,117730.0,117720.0,0.18366333]
[1759337785169,1.27360097,117730.0,117720.0,0.18366333]
[1759337785370,1.27356097,117730.0,117720.0,0.18366333]
[1759337785581,1.35392097,117730.0,117720.0,0.18366333]
[1759337785932,1.38017927,117730.0,117720.0,0.18366333]
[1759337786202,1.71086624,117730.0,117720.0,0.18366333]
[1759337786979,1.71086624,117730.0,117720.0,0.15816961]
[1759337787199,1.70286624,117730.0,117720.0,0.13267589]
[1759337787400,1.70286624,117730.0,117720.0,0.10718217]
[1759337787717,1.72786624,117730.0,117720.0,0.05619473]
[1759337787958,1.72786624,117730.0,117720.0,0.03070101]
[1759337788134,1.72786624,117730.0,117710.0,0.0002]
[1759337788346,1.72786624,117730.0,117700.0,0.22481956]
[1759337788347,0.16990909,117710.0,117700.0,0.22481956]
[1759337788536,0.86048704,117710.0,117700.0,0.22481956]
[1759337788940,0.61476704,117710.0,117700.0,0.22525111]
[1759337789176,1.30240704,117710.0,117700.0,0.22525111]
[1759337789554,0.28408007,117710.0,117700.0,0.22525111]
[1759337789711,0.97172007,117710.0,117700.0,0.22525111]
[1759337790792,0.98995326,117710.0,117700.0,0.22525111]
[1759337790937,0.96447123,117710.0,117700.0,0.22525111]
[1759337791121,0.96503123,117710.0,117700.0,0.22525111]
[1759337791552,0.87663123,117710.0,117700.0,0.22525111]
[1759337791726,0.96503123,117710.0,117700.0,0.22525111]
[1759337792330,1.33518313,117710.0,117700.0,0.19975047]
[1759337792632,1.33518313,117710.0,117700.0,0.17424983]
[1759337792833,1.33518313,117710.0,117700.0,0.14874919]
[1759337793141,1.33518313,117710.0,117700.0,0.09774791]
[1759337793375,1.33518313,117710.0,117700.0,0.07224727]
[1759337793546,1.33518313,117710.0,117700.0,0.04674663]
[1759337793747,0.16993797,117690.0,117680.0,0.0002]
[1759337793945,0.52515895,117690.0,117680.0,0.0002]
[1759337794142,0.53038895,117690.0,117680.0,0.0002]
[1759337794700,0.59312782,117690.0,117680.0,0.0002]
[1759337794926,0.34731471,117690.0,117680.0,0.0002]
[1759337795117,0.37746661,117690.0,117680.0,0.0002]
[1759337795450,1.39647358,117690.0,117680.0,0.0002]
[1759337795666,0.16995241,117680.0,117670.0,0.03756226]
[1759337795846,0.31118529,117680.0,117670.0,0.03756226]
[1759337796019,0.31427529,117680.0,117670.0,0.03756226]
[1759337797249,0.28879326,117680.0,117670.0,0.03756226]
[1759337798143,0.54011875,117670.0,117640.0,0.45500457]
[1759337798385,0.62522875,117670.0,117660.0,0.1720313]
[1759337798760,0.95974875,117670.0,117660.0,0.1720313]
[1759337798899,0.62522875,117670.0,117660.0,0.1720313]
[1759337799126,0.96184875,117670.0,117660.0,0.00205]
[1759337799597,0.99015963,117670.0,117660.0,0.00291348]
[1759337799823,0.99324963,117670.0,117660.0,0.00086348]
[1759337801542,0.78786088,117670.0,117660.0,0.17488478]
[1759337801683,0.95782773,117670.0,117660.0,0.17488478]
[1759337801881,0.45342088,117670.0,117660.0,0.17488478]
[1759337802087,0.95782773,117670.0,117660.0,0.17488478]
[1759337802285,0.95782773,117670.0,117660.0,0.17289478]
[1759337802477,0.62338773,117670.0,117660.0,0.17289478]
[1759337802675,0.45342088,117670.0,117660.0,0.17289478]
[1759337802943,0.95774773,117670.0,117660.0,0.17289478]
[1759337803120,0.42793885,117670.0,117660.0,0.17289478]
[1759337803538,0.76225885,117670.0,117660.0,0.17289478]
[1759337803745,0.35934088,117670.0,117660.0,0.17488478]
[1759337803940,0.44774088,117670.0,117660.0,0.17488478]
[1759337805425,0.45564378,117670.0,117660.0,0.17488478]
[1759337805635,0.37053378,117670.0,117660.0,0.17488478]
[1759337805837,0.36263088,117670.0,117660.0,0.17488478]
[1759337806045,0.54264049,117670.0,117660.0,0.00086348]
[1759337806253,0.54264049,117670.0,117660.0,0.17289478]
[1759337806430,0.55634552,117670.0,117660.0,0.00291348]
[1759337806630,0.55634552,117670.0,117660.0,0.17289478]
[1759337807790,0.37053364,117670.0,117660.0,0.17488478]
[1759337808382,0.38638398,117670.0,117660.0,0.17488478]
[1759337808618,0.38638398,117670.0,117660.0,0.17289478]
[1759337809064,0.37053364,117670.0,117660.0,0.17289478]
[1759337809269,0.36089119,117670.0,117660.0,0.17289478]
[1759337809469,0.53085867,117670.0,117660.0,0.17289478]
[1759337810089,0.36089562,117670.0,117660.0,0.17488478]
[1759337810256,0.34504078,117670.0,117660.0,0.17289478]
[1759337810647,0.51500763,117670.0,117660.0,0.17289478]
[1759337812170,0.51702763,117670.0,117660.0,0.00291348]
[1759337812426,0.53289379,117670.0,117660.0,0.17289478]
[1759337813037,0.53087379,117670.0,117660.0,0.17289478]
[1759337813655,0.36603694,117670.0,117660.0,0.17084478]
[1759337814167,0.36603694,117670.0,117660.0,0.17283478]
[1759337814366,0.36090694,117670.0,117660.0,0.17283478]
[1759337814665,0.36092653,117670.0,117660.0,0.17482478]
[1759337815183,0.24703367,117670.0,117660.0,0.17482478]
[1759337815381,0.00111367,117670.0,117660.0,0.19182291]
[1759337815615,0.24703367,117670.0,117660.0,0.19182291]
[1759337815732,0.00111367,117670.0,117660.0,0.19182291]
[1759337815933,0.24703367,117670.0,117660.0,0.19182291]
[1759337816136,0.00111367,117670.0,117660.0,0.19182291]
[1759337816334,0.24699367,117670.0,117660.0,0.19182291]
[1759337816946,0.24699367,117670.0,117660.0,0.17482478]
[1759337817142,0.41696052,117670.0,117660.0,0.17283478]
[1759337817362,0.43523923,117670.0,117660.0,0.17283478]
[1759337817593,0.41696052,117670.0,117660.0,0.17283478]
[1759337817766,0.24699367,117670.0,117660.0,0.18983291]
[1759337818239,0.41696052,117670.0,117660.0,0.19182291]
[1759337818474,0.43523981,117670.0,117660.0,0.19182291]
[1759337818873,0.43725981,117670.0,117660.0,0.17283478]
[1759337819211,0.44036981,117670.0,117660.0,0.17283478]
[1759337819407,0.43725981,117670.0,117660.0,0.17283478]
[1759337819639,0.43523981,117670.0,117660.0,0.17283478]
[1759337820034,0.43725981,117670.0,117660.0,0.17283478]
[1759337820410,0.44036981,117670.0,117660.0,0.17084478]
[1759337820628,0.43725981,117670.0,117660.0,0.00285348]
[1759337820831,0.43725981,117670.0,117660.0,0.00086348]
[1759337821004,0.43725981,117670.0,117660.0,0.17084478]
[1759337821005,0.44036981,117670.0,117660.0,0.17084478]
[1759337821220,0.84719028,117670.0,117660.0,0.00086348]
[1759337821630,0.87734218,117670.0,117660.0,0.00086348]
[1759337822304,0.84719028,117670.0,117660.0,0.00086348]
[1759337825411,0.94961614,117670.0,117660.0,0.00285348]
[1759337825612,0.95272614,117670.0,117660.0,0.00086348]
[1759337827433,0.96865534,117670.0,117660.0,0.00086348]
[1759337828433,0.99880724,117670.0,117660.0,0.00086348]
[1759337828886,0.66456724,117670.0,117660.0,0.00086348]
[1759337829118,0.99884724,117670.0,117660.0,0.00086348]
[1759337829511,0.66456724,117670.0,117660.0,0.00086348]
[1759337829664,0.99904724,117670.0,117660.0,0.00086348]
[1759337829885,0.66456724,117670.0,117660.0,0.00086348]
[1759337830100,0.91060724,117670.0,117660.0,0.00086348]
[1759337830310,0.66456724,117670.0,117660.0,0.00086348]
[1759337830526,0.63441534,117670.0,117660.0,0.17084478]
[1759337830724,0.96889534,117670.0,117660.0,0.17084478]
[1759337830928,0.96889534,117670.0,117660.0,0.00086348]
[1759337832581,0.79379849,117670.0,117660.0,0.00285348]
[1759337832782,0.03420849,117670.0,117660.0,0.17482478]
[1759337833008,0.0159292,117670.0,117660.0,0.21100678]
[1759337833235,0.04085732,117680.0,117670.0,0.16996685]
[1759337833452,0.03555188,117680.0,117670.0,0.17394685]
[1759337833668,0.01963242,117680.0,117670.0,0.17394685]
[1759337833850,0.01963242,117680.0,117670.0,0.19094353]
[1759337834065,0.01963242,117680.0,117670.0,0.57065421]
[1759337834289,0.01169042,117680.0,117670.0,0.55365753]
[1759337834512,0.01169042,117680.0,117670.0,0.63876753]
[1759337838827,0.01169042,117680.0,117670.0,0.63941508]
[1759337839728,0.01169042,117680.0,117670.0,0.89317508]
[1759337839999,0.01169042,117680.0,117670.0,0.63941508]
[1759337840206,0.01169042,117680.0,117670.0,0.89317508]
[1759337841285,0.08169042,117680.0,117670.0,0.89317508]
[1759337841695,0.01169042,117680.0,117670.0,0.63941508]
[1759337841872,0.01169042,117680.0,117670.0,0.89317508]
[1759337842308,0.01169042,117680.0,117670.0,0.63941508]
[1759337842507,0.01169042,117680.0,117670.0,0.89317508]
[1759337843000,0.01169042,117680.0,117670.0,0.63941508]
[1759337843187,0.01169042,117680.0,117670.0,0.89313508]
[1759337843355,0.01169042,117680.0,117670.0,0.63941508]
[1759337843565,0.01169042,117680.0,117670.0,0.89305508]
[1759337843977,0.01169042,117680.0,117670.0,0.63941508]
[1759337844274,0.01169042,117680.0,117670.0,0.89305508]
[1759337849945,0.01169042,117680.0,117670.0,0.89293508]
[1759337850869,1e-08,117680.0,117670.0,0.94860739]
[1759337851081,0.00046689,117690.0,117680.0,0.16995241]
[1759337851325,0.00046689,117690.0,117680.0,0.34576388]
[1759337851547,0.00046689,117690.0,117680.0,0.34833555]
[1759337852025,1e-08,117690.0,117680.0,0.71848745]
[1759337852262,1e-08,117690.0,117680.0,0.81848745]
[1759337852493,1e-08,117690.0,117680.0,0.84348745]
[1759337852946,1e-08,117690.0,117680.0,0.90438338]
[1759337854544,1e-08,117690.0,117680.0,8.99384338]
[1759337854770,1e-08,117690.0,117680.0,8.93294745]
[1759337855488,1e-08,117690.0,117680.0,8.99374889]
[1759337856230,1e-08,117690.0,117680.0,9.33554889]
[1759337856493,1e-08,117690.0,117680.0,8.99374889]
[1759337856912,1e-08,117690.0,117680.0,9.33554889]
[1759337857240,1e-08,117690.0,117680.0,8.99374889]
[1759337857443,1e-08,117690.0,117680.0,9.33554889]
[1759337857864,1e-08,117690.0,117680.0,8.99374889]
[1759337858022,1e-08,117690.0,117680.0,9.33546889]
[1759337859048,1e-08,117690.0,117680.0,8.99374889]
[1759337859221,1e-08,117690.0,117680.0,9.33534889]
[1759337859738,1e-08,117690.0,117680.0,8.99374889]
[1759337859944,1e-08,117690.0,117680.0,9.33530889]
[1759337860489,1e-08,117690.0,117680.0,9.36082196]
[1759337861394,1e-08,117690.0,117680.0,9.01926196]
[1759337861608,1e-08,117690.0,117680.0,9.36066196]
[1759337862441,0.59637875,117760.0,117740.0,0.16985834]
[1759337862643,0.59637875,117760.0,117740.0,0.2038303]
[1759337862644,0.60427802,117760.0,117740.0,0.2038303]
[1759337862875,0.60427802,117760.0,117740.0,0.2069303]
[1759337863056,0.60637802,117760.0,117740.0,0.2069303]
[1759337863823,0.60637802,117760.0,117750.0,0.17199138]
[1759337864083,0.60637802,117760.0,117750.0,0.04003217]
[1759337864307,0.80584234,117760.0,117750.0,0.20988355]
[1759337864510,1.05872234,117760.0,117750.0,0.04003217]
[1759337864667,1.06405234,117760.0,117740.0,0.17295834]
[1759337864833,1.06405234,117760.0,117740.0,0.16985834]
[1759337865037,0.62485234,117760.0,117740.0,0.16985834]
[1759337865242,0.62485234,117760.0,117740.0,0.17295834]
[1759337866156,0.62485234,117760.0,117740.0,0.16985834]
[1759337866358,0.62485234,117760.0,117740.0,0.2299677]
[1759337866551,0.62485234,117760.0,117750.0,0.16985138]
[1759337866986,0.62485234,117760.0,117740.0,0.2330677]
[1759337867186,0.62485234,117760.0,117750.0,0.16985138]
[1759337867432,0.62485234,117760.0,117740.0,0.2299677]
[1759337868171,0.62485234,117760.0,117740.0,0.2330677]
[1759337868549,0.00143551,117750.0,117740.0,0.2330677]
[1759337868869,0.01143478,117750.0,117740.0,0.2321077]
[1759337869337,0.00933478,117750.0,117740.0,0.2352077]
[1759337869537,0.18451616,117750.0,117740.0,0.06010936]
[1759337869743,0.18451616,117750.0,117730.0,0.16987794]
[1759337869943,0.00323,117740.0,117730.0,0.16987794]
[1759337870148,0.18308065,117750.0,117730.0,0.16987794]
[1759337870566,0.18308065,117750.0,117730.0,0.17301794]
[1759337872874,0.01322927,117750.0,117740.0,0.1698658]
[1759337873102,0.26029927,117750.0,117740.0,0.20945417]
[1759337873301,0.26025927,117750.0,117740.0,0.20945417]
[1759337873612,0.00789927,117750.0,117740.0,0.20945417]
[1759337873836,0.26033927,117750.0,117740.0,0.20945417]
[1759337874507,0.17775065,117750.0,117740.0,0.20945417]
[1759337874710,0.43011065,117750.0,117740.0,0.20945417]
[1759337874955,0.26029927,117750.0,117740.0,0.20945417]
[1759337875176,0.43548065,117750.0,117740.0,0.03428837]
[1759337875402,0.43548065,117750.0,117740.0,0.1698658]
[1759337875617,0.43691616,117750.0,117740.0,0.1698658]
[1759337876060,0.43158616,117750.0,117740.0,0.1720258]
[1759337876517,0.43371616,117750.0,117740.0,0.00216]
[1759337877219,0.43158616,117750.0,117740.0,0.0053]
[1759337877643,0.43371616,117750.0,117740.0,0.00216]
[1759337880664,0.1698658,117740.0,117730.0,0.17301794]
[1759337880875,0.17776507,117740.0,117730.0,0.20815504]
[1759337881083,0.17898498,117740.0,117730.0,0.21031504]
[1759337881275,0.17898498,117740.0,117730.0,0.20717504]
[1759337881523,0.17898498,117740.0,117730.0,0.21031504]
[1759337882722,0.18111498,117740.0,117730.0,0.20717504]
[1759337882907,0.16989466,117720.0,117710.0,0.20391855]
[1759337883102,0.01322927,117720.0,117710.0,0.28916852]
[1759337883341,0.01002927,117720.0,117710.0,0.29132852]
[1759337883573,0.17779393,117720.0,117710.0,0.26581451]
[1759337883788,0.17779393,117720.0,117710.0,0.30970087]
[1759337884010,0.17992393,117720.0,117710.0,0.04402633]
[1759337884222,0.17992393,117720.0,117710.0,0.17220906]
[1759337884223,0.01002927,117720.0,117710.0,0.17220906]
[1759337884483,0.43504393,117720.0,117710.0,0.17004906]
[1759337884945,0.43504393,117720.0,117710.0,0.00013997]
[1759337885158,0.87424393,117720.0,117710.0,0.00013997]
[1759337885369,0.26823393,117720.0,117710.0,0.00013997]
[1759337885588,0.60863393,117720.0,117710.0,0.00013997]
[1759337885826,0.67126265,117720.0,117710.0,0.00013997]
[1759337886037,0.72693841,117720.0,117710.0,0.00013997]
[1759337886247,1.04901841,117720.0,117710.0,0.00013997]
[1759337886455,0.79693841,117720.0,117710.0,0.00013997]
[1759337886628,1.13737841,117720.0,117710.0,0.00013997]
[1759337888590,1.04909841,117720.0,117710.0,0.00013997]
[1759337888905,1.49097841,117720.0,117710.0,0.00013997]
[1759337891662,1.50684152,117720.0,117710.0,0.00013997]
[1759337895773,1.49894225,117720.0,117710.0,0.00013997]